[Event "Titled Tuesday Blitz June 20 Late 2023"]
[White "Defend1r"]
[Black "Yuan, Qingyu"]
[BlackFideId "8609772"]
[WhiteElo "2568"]
[BlackElo "2359"]
[Result "1-0"]
[Round "11"]
[TimeControl "180+2"]
[Date "2023.06.21"]
[WhiteClock "0:00:32"]
[BlackClock "0:00:00"]
[Board "35"]

1. e4 {[%clk 0:03:00]}  c5 {[%clk 0:02:58]} 2. Nf3 {[%clk 0:02:59]}  d6 {[%clk 0:02:59]} 3. c3 {[%clk 0:02:59]}  Nf6 {[%clk 0:02:59]} 4. h3 {[%clk 0:02:59]}  Nc6 {[%clk 0:02:58]} 5. Bd3 {[%clk 0:03:00]}  g6 {[%clk 0:02:56]} 6. Bc2 {[%clk 0:03:00]}  e5 {[%clk 0:02:55]} 7. O-O {[%clk 0:02:56]}  Bg7 {[%clk 0:02:55]} 8. d3 {[%clk 0:02:57]}  O-O {[%clk 0:02:55]} 9. a3 {[%clk 0:02:57]}  d5 {[%clk 0:02:52]} 10. exd5 {[%clk 0:02:57]}  Nxd5 {[%clk 0:02:52]} 11. Nbd2 {[%clk 0:02:57]}  b6 {[%clk 0:02:46]} 12. Nc4 {[%clk 0:02:56]}  Re8 {[%clk 0:02:41]} 13. Re1 {[%clk 0:02:56]}  Bb7 {[%clk 0:02:40]} 14. Bg5 {[%clk 0:02:50]}  Qc7 {[%clk 0:02:39]} 15. Bh4 {[%clk 0:02:49]}  Nf4 {[%clk 0:02:31]} 16. Bg3 {[%clk 0:02:47]}  Rad8 {[%clk 0:02:00]} 17. Qd2 {[%clk 0:02:42]}  Bh6 {[%clk 0:01:56]} 18. Ne3 {[%clk 0:02:39]}  c4 {[%clk 0:01:38]} 19. Kh2 {[%clk 0:02:38]}  Nxd3 {[%clk 0:01:31]} 20. Bxd3 {[%clk 0:01:59]}  Rxd3 {[%clk 0:01:29]} 21. Qc2 {[%clk 0:01:58]}  b5 {[%clk 0:01:14]} 22. a4 {[%clk 0:01:52]}  a6 {[%clk 0:01:11]} 23. axb5 {[%clk 0:01:39]}  axb5 {[%clk 0:01:11]} 24. Rad1 {[%clk 0:01:30]}  Qd8 {[%clk 0:00:53]} 25. Bh4 {[%clk 0:01:04]}  Qd6 {[%clk 0:00:33]} 26. Rxd3 {[%clk 0:00:53]}  cxd3 {[%clk 0:00:26]} 27. Qb3 {[%clk 0:00:54]}  e4+ {[%clk 0:00:23]} 28. Bg3 {[%clk 0:00:53]}  Bf4 {[%clk 0:00:24]} 29. Ng4 {[%clk 0:00:51]}  d2 {[%clk 0:00:19]} 30. Nxd2 {[%clk 0:00:44]}  Qxd2 {[%clk 0:00:16]} 31. Nf6+ {[%clk 0:00:38]}  Kf8 {[%clk 0:00:16]} 32. Rd1 {[%clk 0:00:37]}  Bxg3+ {[%clk 0:00:04]} 33. fxg3 {[%clk 0:00:37]}  Qg5 {[%clk 0:00:03]} 34. Nxh7+ {[%clk 0:00:36]}  Kg7 {[%clk 0:00:04]} 35. Nxg5 {[%clk 0:00:37]}  Ne5 {[%clk 0:00:04]} 36. Nxf7 {[%clk 0:00:32]}  Nxf7 {[%clk 0:00:02]} 37. Rd7 {[%clk 0:00:32]}  Re7 {[%clk 0:00:02]} 38. Rxe7 {[%clk 0:00:32]}  Bd5 {[%clk 0:00:00]} 39. Qxd5 {[%clk 0:00:32]} 1-0


[Site "https://www.chess.com"]

[Event "Titled Tuesday Blitz June 20 Late 2023"]
[White "Korchmar, Vasiliy"]
[Black "Ozates, Tuna"]
[WhiteFideId "24131750"]
[BlackFideId "6354521"]
[WhiteElo "2370"]
[BlackElo "2151"]
[Result "0-1"]
[Round "11"]
[TimeControl "180+2"]
[Date "2023.06.20"]
[WhiteClock "0:00:00"]
[BlackClock "0:00:18"]
[Board "36"]

1. e4 {[%clk 0:02:57]}  e5 {[%clk 0:02:58]} 2. Nf3 {[%clk 0:02:58]}  Nc6 {[%clk 0:02:59]} 3. Nc3 {[%clk 0:02:58]}  Nf6 {[%clk 0:02:58]} 4. Bb5 {[%clk 0:02:58]}  Nd4 {[%clk 0:02:52]} 5. O-O {[%clk 0:02:58]}  Bc5 {[%clk 0:02:46]} 6. Nxe5 {[%clk 0:02:44]}  O-O {[%clk 0:02:45]} 7. Nd3 {[%clk 0:02:38]}  Bb6 {[%clk 0:02:36]} 8. e5 {[%clk 0:02:37]}  Ne8 {[%clk 0:02:26]} 9. Bc4 {[%clk 0:02:28]}  c6 {[%clk 0:02:18]} 10. Ne4 {[%clk 0:02:26]}  d5 {[%clk 0:02:18]} 11. exd6 {[%clk 0:02:26]}  Nxd6 {[%clk 0:02:18]} 12. Nxd6 {[%clk 0:02:25]}  Qxd6 {[%clk 0:02:19]} 13. c3 {[%clk 0:02:22]}  Be6 {[%clk 0:01:59]} 14. Bxe6 {[%clk 0:02:19]}  Nxe6 {[%clk 0:02:00]} 15. Ne1 {[%clk 0:02:15]}  c5 {[%clk 0:01:59]} 16. d3 {[%clk 0:02:10]}  Rad8 {[%clk 0:01:59]} 17. Be3 {[%clk 0:02:08]}  f5 {[%clk 0:01:59]} 18. f4 {[%clk 0:01:47]}  c4 {[%clk 0:01:51]} 19. d4 {[%clk 0:01:35]}  Nc7 {[%clk 0:01:49]} 20. Qe2 {[%clk 0:01:29]}  Qe6 {[%clk 0:01:50]} 21. Nf3 {[%clk 0:01:25]}  Nd5 {[%clk 0:01:40]} 22. Ne5 {[%clk 0:01:25]}  Rc8 {[%clk 0:01:26]} 23. Bd2 {[%clk 0:01:15]}  Nf6 {[%clk 0:01:16]} 24. Rae1 {[%clk 0:01:12]}  Ne4 {[%clk 0:01:16]} 25. Be3 {[%clk 0:01:12]}  Qd5 {[%clk 0:01:12]} 26. Qf3 {[%clk 0:01:12]}  Bd8 {[%clk 0:01:08]} 27. Kh1 {[%clk 0:01:12]}  Bf6 {[%clk 0:01:06]} 28. h3 {[%clk 0:01:12]}  Bh4 {[%clk 0:01:06]} 29. Bf2 {[%clk 0:01:06]}  Nxf2+ {[%clk 0:00:54]} 30. Rxf2 {[%clk 0:01:06]}  Qxf3 {[%clk 0:00:53]} 31. Rxf3 {[%clk 0:00:56]}  Bxe1 {[%clk 0:00:53]} 32. g3 {[%clk 0:00:57]}  b5 {[%clk 0:00:43]} 33. Re3 {[%clk 0:00:42]}  Bd2 {[%clk 0:00:41]} 34. Re2 {[%clk 0:00:42]}  Bc1 {[%clk 0:00:42]} 35. Rc2 {[%clk 0:00:43]}  Be3 {[%clk 0:00:38]} 36. Re2 {[%clk 0:00:42]}  Bxd4 {[%clk 0:00:37]} 37. cxd4 {[%clk 0:00:42]}  b4 {[%clk 0:00:38]} 38. d5 {[%clk 0:00:39]}  Rfd8 {[%clk 0:00:38]} 39. Nc6 {[%clk 0:00:37]}  Rxc6 {[%clk 0:00:20]} 40. dxc6 {[%clk 0:00:38]}  Rc8 {[%clk 0:00:21]} 41. Kg2 {[%clk 0:00:03]}  Rxc6 {[%clk 0:00:20]} 42. Kf3 {[%clk 0:00:03]}  Kf7 {[%clk 0:00:20]} 43. Ke3 {[%clk 0:00:03]}  c3 {[%clk 0:00:18]} 44. Kd3 {[%clk 0:00:02]}  cxb2 {[%clk 0:00:17]} 45. Rxb2 {[%clk 0:00:02]}  Rc3+ {[%clk 0:00:18]} 46. Kd4 {[%clk 0:00:01]}  a5 {[%clk 0:00:19]} 47. g4 {[%clk 0:00:00]}  Rxh3 {[%clk 0:00:18]} 0-1


[Site "https://www.chess.com"]

[Event "Titled Tuesday Blitz June 20 Late 2023"]
[White "Sun, Rick"]
[Black "Santos Flores, Alberto"]
[WhiteFideId "30909481"]
[BlackFideId "3601234"]
[WhiteElo "2169"]
[BlackElo "2235"]
[Result "0-1"]
[Round "11"]
[TimeControl "180+2"]
[Date "2023.06.20"]
[WhiteClock "0:00:00"]
[BlackClock "0:00:51"]
[Board "38"]

1. e4 {[%clk 0:03:00]}  c5 {[%clk 0:02:59]} 2. Nf3 {[%clk 0:03:01]}  Nc6 {[%clk 0:02:59]} 3. d4 {[%clk 0:03:01]}  cxd4 {[%clk 0:02:59]} 4. Nxd4 {[%clk 0:03:02]}  g6 {[%clk 0:02:59]} 5. Nc3 {[%clk 0:03:02]}  Bg7 {[%clk 0:02:59]} 6. Be3 {[%clk 0:03:02]}  Nf6 {[%clk 0:02:59]} 7. Bc4 {[%clk 0:03:02]}  O-O {[%clk 0:03:00]} 8. Bb3 {[%clk 0:03:02]}  d6 {[%clk 0:02:59]} 9. f3 {[%clk 0:03:02]}  Bd7 {[%clk 0:02:57]} 10. Qd2 {[%clk 0:03:02]}  Nxd4 {[%clk 0:02:54]} 11. Bxd4 {[%clk 0:03:03]}  b5 {[%clk 0:02:55]} 12. h4 {[%clk 0:03:02]}  a5 {[%clk 0:02:55]} 13. h5 {[%clk 0:02:59]}  a4 {[%clk 0:02:49]} 14. Bd5 {[%clk 0:02:55]}  Rb8 {[%clk 0:02:35]} 15. hxg6 {[%clk 0:02:48]}  hxg6 {[%clk 0:02:33]} 16. g4 {[%clk 0:01:13]}  e6 {[%clk 0:02:31]} 17. g5 {[%clk 0:01:01]}  Nh5 {[%clk 0:02:28]} 18. Bxg7 {[%clk 0:00:38]}  Kxg7 {[%clk 0:02:28]} 19. O-O-O {[%clk 0:00:36]}  b4 {[%clk 0:02:20]} 20. Ne2 {[%clk 0:00:28]}  exd5 {[%clk 0:02:20]} 21. Qxd5 {[%clk 0:00:25]}  Be6 {[%clk 0:02:14]} 22. Qd4+ {[%clk 0:00:25]}  Kg8 {[%clk 0:02:13]} 23. f4 {[%clk 0:00:20]}  Bg4 {[%clk 0:02:06]} 24. Rd2 {[%clk 0:00:14]}  Qb6 {[%clk 0:02:03]} 25. Qd3 {[%clk 0:00:11]}  Rfe8 {[%clk 0:01:52]} 26. Ng3 {[%clk 0:00:09]}  Nxf4 {[%clk 0:01:29]} 27. Qf1 {[%clk 0:00:08]}  Nh5 {[%clk 0:01:29]} 28. Nxh5 {[%clk 0:00:04]}  Bxh5 {[%clk 0:01:30]} 29. Qf6 {[%clk 0:00:03]}  Re6 {[%clk 0:01:18]} 30. Qf4 {[%clk 0:00:02]}  Rbe8 {[%clk 0:01:17]} 31. Rf2 {[%clk 0:00:02]}  Qc7 {[%clk 0:01:11]} 32. Re1 {[%clk 0:00:03]}  Qe7 {[%clk 0:01:08]} 33. Kb1 {[%clk 0:00:01]}  a3 {[%clk 0:01:05]} 34. b3 {[%clk 0:00:01]}  Re5 {[%clk 0:00:53]} 35. Kc1 {[%clk 0:00:00]}  Rxg5 {[%clk 0:00:51]} 0-1


[Site "https://www.chess.com"]

[Event "Titled Tuesday Blitz June 20 Late 2023"]
[White "Wang, Isaac"]
[Black "ATM622"]
[WhiteFideId "30977185"]
[WhiteElo "2449"]
[BlackElo "2641"]
[Result "0-1"]
[Round "11"]
[TimeControl "180+2"]
[Date "2023.06.20"]
[WhiteClock "0:02:03"]
[BlackClock "0:01:53"]
[Board "41"]

1. d4 {[%clk 0:03:00]}  Nf6 {[%clk 0:02:59]} 2. c4 {[%clk 0:02:59]}  e6 {[%clk 0:02:59]} 3. Nf3 {[%clk 0:02:59]}  d5 {[%clk 0:02:59]} 4. Nc3 {[%clk 0:02:59]}  Be7 {[%clk 0:02:58]} 5. g3 {[%clk 0:02:58]}  O-O {[%clk 0:02:58]} 6. Bg2 {[%clk 0:02:58]}  c6 {[%clk 0:02:57]} 7. O-O {[%clk 0:02:58]}  Nbd7 {[%clk 0:02:55]} 8. Qd3 {[%clk 0:02:58]}  dxc4 {[%clk 0:02:55]} 9. Qxc4 {[%clk 0:02:57]}  Nb6 {[%clk 0:02:46]} 10. Qb3 {[%clk 0:02:56]}  Nbd5 {[%clk 0:02:43]} 11. Rd1 {[%clk 0:02:51]}  a5 {[%clk 0:02:42]} 12. Bg5 {[%clk 0:02:50]}  h6 {[%clk 0:02:39]} 13. Bxf6 {[%clk 0:02:48]}  Bxf6 {[%clk 0:02:40]} 14. e4 {[%clk 0:02:47]}  Nxc3 {[%clk 0:02:37]} 15. bxc3 {[%clk 0:02:48]}  b5 {[%clk 0:02:34]} 16. a4 {[%clk 0:02:47]}  Ba6 {[%clk 0:02:33]} 17. e5 {[%clk 0:02:45]}  Be7 {[%clk 0:02:33]} 18. Nd2 {[%clk 0:02:45]}  Qb6 {[%clk 0:02:29]} 19. axb5 {[%clk 0:02:38]}  Qxb5 {[%clk 0:02:23]} 20. Qa2 {[%clk 0:02:25]}  Qb7 {[%clk 0:02:11]} 21. Rdb1 {[%clk 0:02:19]}  Qc8 {[%clk 0:02:08]} 22. Qxa5 {[%clk 0:02:14]}  Bd3 {[%clk 0:02:06]} 23. Qxa8 {[%clk 0:02:13]}  Qxa8 {[%clk 0:02:07]} 24. Rxa8 {[%clk 0:02:13]}  Rxa8 {[%clk 0:02:08]} 25. Rb7 {[%clk 0:02:10]}  Ra1+ {[%clk 0:02:05]} 26. Bf1 {[%clk 0:02:10]}  Rd1 {[%clk 0:02:00]} 27. Rb2 {[%clk 0:02:09]}  Ba3 {[%clk 0:01:57]} 28. Ra2 {[%clk 0:02:09]}  Bc1 {[%clk 0:01:55]} 29. Kg2 {[%clk 0:02:07]}  Rxd2 {[%clk 0:01:53]} 30. Rxd2 {[%clk 0:02:04]}  Bxf1+ {[%clk 0:01:53]} 31. Kxf1 {[%clk 0:02:05]}  Bxd2 {[%clk 0:01:54]} 32. c4 {[%clk 0:02:03]}  Bc3 {[%clk 0:01:53]} 0-1


[Site "https://www.chess.com"]

[Event "Titled Tuesday Blitz June 20 Late 2023"]
[White "Zhigalko, Sergei"]
[Black "ElDivis"]
[WhiteFideId "13502956"]
[WhiteElo "2626"]
[BlackElo "2541"]
[Result "1-0"]
[Round "11"]
[TimeControl "180+2"]
[Date "2023.06.20"]
[WhiteClock "0:00:04"]
[BlackClock "0:00:00"]
[Board "44"]

1. h4 {[%clk 0:03:00]}  d5 {[%clk 0:02:59]} 2. a4 {[%clk 0:02:59]}  e5 {[%clk 0:02:59]} 3. b3 {[%clk 0:02:59]}  Nc6 {[%clk 0:02:59]} 4. Bb2 {[%clk 0:02:59]}  Nf6 {[%clk 0:02:58]} 5. g3 {[%clk 0:03:00]}  Bc5 {[%clk 0:02:58]} 6. e3 {[%clk 0:02:58]}  O-O {[%clk 0:02:57]} 7. d3 {[%clk 0:02:57]}  d4 {[%clk 0:02:40]} 8. e4 {[%clk 0:02:55]}  Bb4+ {[%clk 0:02:38]} 9. Nd2 {[%clk 0:02:53]}  Ng4 {[%clk 0:02:38]} 10. Qe2 {[%clk 0:02:33]}  Bc3 {[%clk 0:02:28]} 11. Rb1 {[%clk 0:02:27]}  f5 {[%clk 0:02:02]} 12. exf5 {[%clk 0:02:05]}  Bxf5 {[%clk 0:01:45]} 13. Nf3 {[%clk 0:02:01]}  Nb4 {[%clk 0:01:24]} 14. Qd1 {[%clk 0:01:42]}  Qf6 {[%clk 0:00:56]} 15. Be2 {[%clk 0:01:36]}  Bxb2 {[%clk 0:00:35]} 16. Rxb2 {[%clk 0:01:36]}  Nd5 {[%clk 0:00:28]} 17. O-O {[%clk 0:01:35]}  Nc3 {[%clk 0:00:28]} 18. Qe1 {[%clk 0:01:35]}  Rae8 {[%clk 0:00:22]} 19. Ng5 {[%clk 0:01:32]}  h6 {[%clk 0:00:18]} 20. Nge4 {[%clk 0:01:32]}  Nxe4 {[%clk 0:00:18]} 21. Nxe4 {[%clk 0:01:16]}  Bxe4 {[%clk 0:00:18]} 22. dxe4 {[%clk 0:01:17]}  h5 {[%clk 0:00:16]} 23. b4 {[%clk 0:01:10]}  Qg6 {[%clk 0:00:16]} 24. Rb3 {[%clk 0:01:10]}  Kh8 {[%clk 0:00:13]} 25. Bd1 {[%clk 0:00:50]}  Rf6 {[%clk 0:00:12]} 26. Rd3 {[%clk 0:00:28]}  Ref8 {[%clk 0:00:12]} 27. Bxg4 {[%clk 0:00:27]}  Qxg4 {[%clk 0:00:12]} 28. c3 {[%clk 0:00:27]}  Rf3 {[%clk 0:00:10]} 29. Rxf3 {[%clk 0:00:18]}  Qxf3 {[%clk 0:00:11]} 30. cxd4 {[%clk 0:00:17]}  exd4 {[%clk 0:00:11]} 31. Qd1 {[%clk 0:00:13]}  Qxe4 {[%clk 0:00:09]} 32. Qxh5+ {[%clk 0:00:12]}  Qh7 {[%clk 0:00:09]} 33. Qd5 {[%clk 0:00:09]}  d3 {[%clk 0:00:06]} 34. Rd1 {[%clk 0:00:07]}  Qf5 {[%clk 0:00:03]} 35. Qxf5 {[%clk 0:00:06]}  Rxf5 {[%clk 0:00:04]} 36. Rxd3 {[%clk 0:00:06]}  c5 {[%clk 0:00:04]} 37. Rd7 {[%clk 0:00:05]}  cxb4 {[%clk 0:00:03]} 38. Rxb7 {[%clk 0:00:05]}  a5 {[%clk 0:00:04]} 39. Kg2 {[%clk 0:00:05]}  Rb5 {[%clk 0:00:00]} 40. Rxb5 {[%clk 0:00:04]} 1-0


[Site "https://www.chess.com"]

[Event "Titled Tuesday Blitz June 20 Late 2023"]
[White "Ganiev, Roman"]
[Black "Liu, Casper"]
[WhiteFideId "4131452"]
[BlackFideId "1454153"]
[WhiteElo "2661"]
[BlackElo "2221"]
[Result "1-0"]
[Round "11"]
[TimeControl "180+2"]
[Date "2023.06.20"]
[WhiteClock "0:01:48"]
[BlackClock "0:01:59"]
[Board "48"]

1. e4 {[%clk 0:03:00]}  d5 {[%clk 0:02:57]} 2. exd5 {[%clk 0:03:00]}  Qxd5 {[%clk 0:02:58]} 3. Nc3 {[%clk 0:03:01]}  Qd6 {[%clk 0:02:57]} 4. d4 {[%clk 0:03:01]}  Nc6 {[%clk 0:02:57]} 5. Nf3 {[%clk 0:03:01]}  Bg4 {[%clk 0:02:57]} 6. Be3 {[%clk 0:02:52]}  O-O-O {[%clk 0:02:57]} 7. Be2 {[%clk 0:02:33]}  a6 {[%clk 0:02:50]} 8. O-O {[%clk 0:02:32]}  h5 {[%clk 0:02:35]} 9. d5 {[%clk 0:02:28]}  Nb4 {[%clk 0:02:19]} 10. Qd4 {[%clk 0:02:05]}  Nxd5 {[%clk 0:02:16]} 11. Nxd5 {[%clk 0:02:00]}  Qxd5 {[%clk 0:02:16]} 12. Qa7 {[%clk 0:02:01]}  Rd6 {[%clk 0:02:08]} 13. Rad1 {[%clk 0:01:55]}  Qc6 {[%clk 0:02:02]} 14. Qa8+ {[%clk 0:01:47]}  Kd7 {[%clk 0:01:59]} 15. Ne5+ {[%clk 0:01:48]} 1-0


[Site "https://www.chess.com"]

[Event "Titled Tuesday Blitz June 20 Late 2023"]
[White "Kujawski, Adam"]
[Black "Ortega Amarelle, Mariano"]
[WhiteFideId "1100920"]
[BlackFideId "3504301"]
[WhiteElo "2054"]
[BlackElo "2392"]
[Result "0-1"]
[Round "11"]
[TimeControl "180+2"]
[Date "2023.06.20"]
[WhiteClock "0:00:00"]
[BlackClock "0:01:33"]
[Board "52"]

1. e4 {[%clk 0:02:58]}  d5 {[%clk 0:02:57]} 2. exd5 {[%clk 0:02:58]}  Qxd5 {[%clk 0:02:58]} 3. Nc3 {[%clk 0:02:58]}  Qa5 {[%clk 0:02:58]} 4. d4 {[%clk 0:02:58]}  Nf6 {[%clk 0:02:59]} 5. Nf3 {[%clk 0:02:59]}  Bf5 {[%clk 0:02:55]} 6. Bd2 {[%clk 0:02:56]}  c6 {[%clk 0:02:55]} 7. Bc4 {[%clk 0:02:56]}  e6 {[%clk 0:02:54]} 8. Qe2 {[%clk 0:02:50]}  Qc7 {[%clk 0:02:50]} 9. O-O-O {[%clk 0:02:46]}  Be7 {[%clk 0:02:49]} 10. Ne5 {[%clk 0:02:38]}  Nbd7 {[%clk 0:02:49]} 11. f3 {[%clk 0:02:15]}  Nxe5 {[%clk 0:02:48]} 12. dxe5 {[%clk 0:02:14]}  Nd7 {[%clk 0:02:46]} 13. g4 {[%clk 0:02:11]}  Bg6 {[%clk 0:02:46]} 14. h4 {[%clk 0:02:07]}  h5 {[%clk 0:02:44]} 15. Bd3 {[%clk 0:01:50]}  Bxd3 {[%clk 0:02:41]} 16. Qxd3 {[%clk 0:01:50]}  O-O-O {[%clk 0:02:41]} 17. f4 {[%clk 0:01:31]}  Nxe5 {[%clk 0:02:35]} 18. Qe3 {[%clk 0:01:28]}  Nc4 {[%clk 0:02:31]} 19. Qxa7 {[%clk 0:01:26]}  Nxd2 {[%clk 0:02:30]} 20. Rxd2 {[%clk 0:01:24]}  Rxd2 {[%clk 0:02:13]} 21. Qa8+ {[%clk 0:01:23]}  Qb8 {[%clk 0:02:13]} 22. Qxb8+ {[%clk 0:01:23]}  Kxb8 {[%clk 0:02:13]} 23. Kxd2 {[%clk 0:01:23]}  hxg4 {[%clk 0:02:13]} 24. h5 {[%clk 0:01:18]}  f5 {[%clk 0:02:12]} 25. Ne2 {[%clk 0:00:44]}  Bc5 {[%clk 0:02:05]} 26. Ke1 {[%clk 0:00:29]}  Kc7 {[%clk 0:02:03]} 27. c3 {[%clk 0:00:26]}  Be3 {[%clk 0:01:56]} 28. a3 {[%clk 0:00:16]}  Kd6 {[%clk 0:01:55]} 29. Kf1 {[%clk 0:00:15]}  Kd5 {[%clk 0:01:53]} 30. Kg2 {[%clk 0:00:15]}  Ke4 {[%clk 0:01:53]} 31. Re1 {[%clk 0:00:14]}  c5 {[%clk 0:01:45]} 32. b4 {[%clk 0:00:06]}  b6 {[%clk 0:01:45]} 33. a4 {[%clk 0:00:06]}  Rd8 {[%clk 0:01:37]} 34. a5 {[%clk 0:00:02]}  bxa5 {[%clk 0:01:37]} 35. bxa5 {[%clk 0:00:02]}  Rd2 {[%clk 0:01:36]} 36. a6 {[%clk 0:00:01]}  Ra2 {[%clk 0:01:36]} 37. Kf1 {[%clk 0:00:00]}  Kf3 {[%clk 0:01:33]} 0-1


[Site "https://www.chess.com"]

[Event "Titled Tuesday Blitz June 20 Late 2023"]
[White "Cuenca Jimenez, Jose Fernando"]
[Black "Balla, Tamas-Kristof"]
[WhiteFideId "2255570"]
[BlackFideId "1208497"]
[WhiteElo "2418"]
[BlackElo "2334"]
[Result "0-1"]
[Round "11"]
[TimeControl "180+2"]
[Date "2023.06.20"]
[WhiteClock "0:00:05"]
[BlackClock "0:00:15"]
[Board "54"]

1. e4 {[%clk 0:03:00]}  c5 {[%clk 0:03:00]} 2. Nf3 {[%clk 0:03:00]}  Nc6 {[%clk 0:03:00]} 3. d4 {[%clk 0:03:01]}  cxd4 {[%clk 0:03:01]} 4. Nxd4 {[%clk 0:03:01]}  e5 {[%clk 0:03:02]} 5. Nb5 {[%clk 0:03:01]}  d6 {[%clk 0:03:02]} 6. c4 {[%clk 0:03:01]}  Be7 {[%clk 0:03:02]} 7. N1c3 {[%clk 0:02:58]}  a6 {[%clk 0:03:02]} 8. Na3 {[%clk 0:02:58]}  f5 {[%clk 0:03:03]} 9. exf5 {[%clk 0:02:59]}  Bxf5 {[%clk 0:03:03]} 10. Bd3 {[%clk 0:03:00]}  Be6 {[%clk 0:03:03]} 11. Nc2 {[%clk 0:02:59]}  Nf6 {[%clk 0:03:04]} 12. Ne3 {[%clk 0:03:00]}  O-O {[%clk 0:03:04]} 13. O-O {[%clk 0:03:00]}  Qd7 {[%clk 0:03:04]} 14. b3 {[%clk 0:02:59]}  Rae8 {[%clk 0:03:05]} 15. Bb2 {[%clk 0:02:58]}  Bd8 {[%clk 0:03:05]} 16. Ne4 {[%clk 0:02:55]}  Bb6 {[%clk 0:02:50]} 17. Nxd6 {[%clk 0:02:26]}  Rd8 {[%clk 0:02:43]} 18. Ba3 {[%clk 0:02:27]}  Bc7 {[%clk 0:01:45]} 19. c5 {[%clk 0:02:20]}  b6 {[%clk 0:01:44]} 20. b4 {[%clk 0:02:12]}  a5 {[%clk 0:01:42]} 21. Bb5 {[%clk 0:01:48]}  axb4 {[%clk 0:01:42]} 22. Bxb4 {[%clk 0:01:47]}  bxc5 {[%clk 0:01:43]} 23. Bxc5 {[%clk 0:01:46]}  Bxd6 {[%clk 0:01:43]} 24. Qa4 {[%clk 0:01:14]}  Bxc5 {[%clk 0:01:40]} 25. Bxc6 {[%clk 0:01:15]}  Qd4 {[%clk 0:01:27]} 26. Qc2 {[%clk 0:01:05]}  Rc8 {[%clk 0:01:18]} 27. Rfd1 {[%clk 0:01:03]}  Qb4 {[%clk 0:01:15]} 28. Rab1 {[%clk 0:00:58]}  Qa3 {[%clk 0:01:10]} 29. Bb7 {[%clk 0:00:55]}  Bxe3 {[%clk 0:01:00]} 30. Bxc8 {[%clk 0:00:54]}  Bxc8 {[%clk 0:00:45]} 31. fxe3 {[%clk 0:00:49]}  Qxe3+ {[%clk 0:00:41]} 32. Qf2 {[%clk 0:00:48]}  Qg5 {[%clk 0:00:37]} 33. Rf1 {[%clk 0:00:39]}  Be6 {[%clk 0:00:36]} 34. a4 {[%clk 0:00:36]}  Bc4 {[%clk 0:00:36]} 35. Rfe1 {[%clk 0:00:31]}  Ng4 {[%clk 0:00:35]} 36. Qg3 {[%clk 0:00:28]}  e4 {[%clk 0:00:26]} 37. h3 {[%clk 0:00:11]}  Qc5+ {[%clk 0:00:26]} 38. Kh1 {[%clk 0:00:11]}  Nf2+ {[%clk 0:00:26]} 39. Kh2 {[%clk 0:00:12]}  Bd5 {[%clk 0:00:17]} 40. Rb5 {[%clk 0:00:03]}  Qd4 {[%clk 0:00:14]} 41. Rbb1 {[%clk 0:00:02]}  Nd3 {[%clk 0:00:11]} 42. Red1 {[%clk 0:00:02]}  Qxa4 {[%clk 0:00:09]} 43. Ra1 {[%clk 0:00:02]}  Qd4 {[%clk 0:00:09]} 44. Rf1 {[%clk 0:00:03]}  Re8 {[%clk 0:00:09]} 45. Rfd1 {[%clk 0:00:03]}  h6 {[%clk 0:00:09]} 46. Rab1 {[%clk 0:00:03]}  Qe5 {[%clk 0:00:09]} 47. Qxe5 {[%clk 0:00:02]}  Rxe5 {[%clk 0:00:10]} 48. Rd2 {[%clk 0:00:01]}  Nf4 {[%clk 0:00:09]} 49. Re1 {[%clk 0:00:01]}  e3 {[%clk 0:00:10]} 50. Rd4 {[%clk 0:00:02]}  Nxg2 {[%clk 0:00:09]} 51. Kg3 {[%clk 0:00:01]}  Nxe1 {[%clk 0:00:09]} 52. Rxd5 {[%clk 0:00:02]}  Rxd5 {[%clk 0:00:09]} 53. Kf4 {[%clk 0:00:02]}  Nc2 {[%clk 0:00:10]} 54. Ke4 {[%clk 0:00:02]}  Rd7 {[%clk 0:00:10]} 55. Kf3 {[%clk 0:00:02]}  Rd2 {[%clk 0:00:10]} 56. Kf4 {[%clk 0:00:03]}  e2 {[%clk 0:00:11]} 57. Kf5 {[%clk 0:00:03]}  e1=Q {[%clk 0:00:12]} 58. Kg6 {[%clk 0:00:04]}  Qe6+ {[%clk 0:00:12]} 59. Kh5 {[%clk 0:00:05]}  Qf5+ {[%clk 0:00:13]} 60. Kh4 {[%clk 0:00:05]}  Qf4+ {[%clk 0:00:14]} 61. Kh5 {[%clk 0:00:05]}  Rd5+ {[%clk 0:00:14]} 62. Kg6 {[%clk 0:00:05]}  Qf5# {[%clk 0:00:15]} 0-1


[Site "https://www.chess.com"]